fUST/lending_fUST_20240129
["ID","MTS","AMOUNT","RATE_DAILY","PERIOD"]
[312957358,1706538803821,-500.0,0.00039452,31]
[312957359,1706538803846,-878.0,0.00039452,31]
[312957360,1706538803870,-4182.51,0.00039452,31]
[312957361,1706538803893,-500.0,0.00039452,31]
[312957362,1706538803917,-14584.84,0.00039452,31]
[312957363,1706538803941,-512.51944681,0.00039452,31]
[312957364,1706538803965,-619.33300483,0.00039452,31]
[312957365,1706538803989,-500.0,0.00039452,31]
[312957366,1706538804012,-500.0,0.00039452,31]
[312957367,1706538804036,-660.89,0.00039452,31]
[312957368,1706538804061,-500.0,0.00039452,31]
[312957369,1706538804085,-500.0,0.00039452,31]
[312957370,1706538804108,-749.73,0.00039452,31]
[312957371,1706538804132,-2909.62,0.00039452,31]
[312957372,1706538804162,-2473.64,0.00039452,31]
[312957373,1706538804186,-500.0,0.00039452,31]
[312957374,1706538804209,-500.0,0.00039452,31]
[312957375,1706538804234,-4154.62,0.00039452,31]
[312957376,1706538804260,-500.0,0.00039726,31]
[312957377,1706538804283,-226.15871984,0.00039726,31]
[312957378,1706538804307,-500.0,0.00039726,31]
[312957379,1706538804332,-500.0,0.00039726,31]
[312957380,1706538804356,-500.0,0.00039726,31]
[312957381,1706538804380,-500.0,0.00039726,31]
[312957382,1706538804403,-510.75478059,0.00039726,31]
[312957383,1706538804427,-500.0,0.00039726,31]
[312957384,1706538804452,-1691.94,0.00039726,31]
[312957385,1706538804478,-522.24338177,0.00039726,31]
[312957386,1706538804503,-1866.16501884,0.00039726,30]
[312957387,1706538804528,-500.0,0.00039726,31]
[312957388,1706538804552,-828.48,0.00039726,31]
[312957389,1706538804577,-500.0,0.00039726,31]
[312957390,1706538804600,-500.0,0.00039726,31]
[312957391,1706538804624,-649.34686921,0.00039726,31]
[312957392,1706538804648,-1435.56,0.00039726,31]
[312957393,1706538804672,-704.48,0.00039726,31]
[312957394,1706538804697,-500.0,0.00039726,31]
[312957395,1706538804721,-4725.61,0.00039726,31]
[312957396,1706538804744,-1231.73,0.00039726,31]
[312957397,1706538804771,-1441.83,0.00039726,31]
[312957398,1706538804794,-500.0,0.00039726,31]
[312957399,1706538804819,-2221.56,0.00039726,31]
[312957400,1706538804842,-500.0,0.00039726,31]
[312957401,1706538804865,-512.24805969,0.00039726,31]
[312957402,1706538804889,-813.27,0.00039726,31]
[312957403,1706538804912,-500.0,0.00039726,31]
[312957404,1706538804935,-807.25,0.00039726,31]
[312957405,1706538804957,-500.0,0.00039726,31]
[312957406,1706538804980,-724.98,0.00039726,31]
[312957407,1706538805003,-500.0,0.00039726,31]
[312957408,1706538805029,-1574.41,0.00039726,31]
[312957409,1706538805053,-905.22,0.00039726,31]
[312957410,1706538805158,-500.0,0.00039726,31]
[312957411,1706538805186,-500.0,0.00039726,31]
[312957412,1706538805211,-500.0,0.00039726,31]
[312957413,1706538805240,-158.67571127,0.00039726,31]
[312957414,1706538805265,-500.0,0.00039726,31]
[312957415,1706538805290,-500.0,0.00039726,31]
[312957416,1706538805317,-3427.6,0.00039726,31]
[312957417,1706538805341,-1057.6,0.00039726,31]
[312957418,1706538805366,-500.0,0.00039726,31]
[312957419,1706538805389,-1017.15,0.00039726,31]
[312957420,1706538805414,-2169.21,0.00039726,31]
[312957421,1706538805437,-1131.83,0.00039726,31]
[312957422,1706538805461,-500.0,0.00039726,31]
[312957423,1706538805485,-779.34,0.00039726,31]
[312957424,1706538805510,-9873.08,0.00039726,31]
[312957425,1706538805533,-579.54454924,0.00039726,31]
[312957426,1706538805559,-11797.11,0.00039726,31]
[312957427,1706538805583,-2020.52,0.00039726,31]
[312957428,1706538805607,-179.42945277,0.00039726,31]
[312957429,1706538805630,-743.87,0.00039726,31]
[312957430,1706538805653,-2211.57,0.00039726,31]
[312957431,1706538805683,-500.0,0.00039726,31]
[312957432,1706538805713,-924.3,0.00039726,31]
[312957433,1706538805737,-1073.34,0.00039726,31]
[312957434,1706538805762,-872.23,0.00039726,31]
[312957435,1706538805787,-1852.45,0.00039726,31]
[312957436,1706538805810,-5429.7,0.00039726,31]
[312957437,1706538805834,-1635.04,0.00039726,31]
[312957438,1706538805858,-9404.46,0.00039726,31]
[312957439,1706538805881,-14041.2,0.00039726,31]
[312957440,1706538805907,-500.0,0.00039726,31]
[312957441,1706538805930,-2669.14,0.00039726,31]
[312957442,1706538805953,-500.0,0.00039726,31]
[312957443,1706538805977,-2294.83,0.00039726,31]
[312957444,1706538806001,-500.0,0.00039726,31]
[312957445,1706538806024,-524.20722034,0.00039726,31]
[312957446,1706538806049,-878.0,0.00039726,31]
[312957447,1706538806076,-4182.51,0.00039726,31]
[312957448,1706538806099,-500.0,0.00039726,31]
[312957449,1706538806124,-14584.84,0.00039726,31]
[312957450,1706538806149,-500.0,0.00039726,31]
[312957451,1706538806172,-500.0,0.00039726,31]
[312957452,1706538806196,-660.89,0.00039726,31]
[312957453,1706538806221,-500.0,0.00039726,31]
[312957454,1706538806247,-500.0,0.00039726,31]
[312957455,1706538806272,-749.73,0.00039726,31]
[312957456,1706538806296,-2909.62,0.00039726,31]
[312957457,1706538806322,-2473.64,0.00039726,31]
[312957458,1706538806345,-402.80515374,0.00039726,31]
[312957459,1706538806369,-500.0,0.00039726,31]
[312957460,1706538806392,-4154.62,0.00039726,31]
[312957461,1706538806415,-415.95381814,0.00039999,31]
[312957462,1706538806438,-374.28998743,0.00039999,31]
[312957463,1706538806461,-500.0,0.00039999,31]
[312957464,1706538806484,-500.0,0.00039999,31]
[312957465,1706538806507,-256.10402125,0.00039999,31]
[312957466,1706538806531,-500.0,0.00039999,31]
[312957467,1706538806554,-500.0,0.00039999,31]
[312957468,1706538806580,-500.0,0.00039999,31]
[312957469,1706538806603,-500.0,0.00039999,31]
[312957470,1706538806626,-500.0,0.00039999,31]
[312957471,1706538806650,-500.0,0.00039999,31]
[312957472,1706538806677,-500.0,0.00039999,31]
[312957473,1706538806700,-247.4316939,0.00039999,31]
[312957474,1706538806723,-450.0,0.00039999,31]
[312957475,1706538806747,-500.0,0.00039999,31]
[312957476,1706538806771,-1822.10804976,0.0004,30]
[312957477,1706538806794,-4251.06883772,0.0004,120]
[312957478,1706538806821,-4155.47602968,0.0004,30]
[312957479,1706538806918,-11044.45724065,0.0004,90]
[312957480,1706538806945,-2500.0,0.0004,30]
[312957481,1706538806970,-500.0,0.0004,31]
[312957482,1706538806994,-500.0,0.0004,31]
[312957483,1706538807017,-500.0,0.0004,31]
[312957484,1706538807040,-500.0,0.0004,31]
[312957485,1706538807067,-500.0,0.0004,31]
[312957486,1706538807090,-500.0,0.0004,31]
[312957487,1706538807114,-1691.94,0.0004,31]
[312957488,1706538807137,-500.0,0.0004,31]
[312957489,1706538807165,-828.48,0.0004,31]
[312957490,1706538807190,-500.0,0.0004,31]
[312957491,1706538807212,-500.0,0.0004,31]
[312957492,1706538807239,-1435.56,0.0004,31]
[312957493,1706538807262,-704.48,0.0004,31]
[312957494,1706538807287,-500.0,0.0004,31]
[312957495,1706538807314,-4725.61,0.0004,31]
[312957496,1706538807337,-1231.73,0.0004,31]
[312957497,1706538807360,-1441.83,0.0004,31]
[312957498,1706538807383,-500.0,0.0004,31]
[312957499,1706538807405,-2221.56,0.0004,31]
[312957500,1706538807429,-500.0,0.0004,31]
[312957501,1706538807452,-813.27,0.0004,31]
[312957502,1706538807475,-500.0,0.0004,31]
[312957503,1706538807499,-807.25,0.0004,31]
[312957504,1706538807522,-500.0,0.0004,31]
[312957505,1706538807545,-724.98,0.0004,31]
[312957506,1706538807570,-500.0,0.0004,31]
[312957507,1706538807593,-1574.41,0.0004,31]
[312957508,1706538807616,-905.22,0.0004,31]
[312957509,1706538807639,-500.0,0.0004,31]
[312957510,1706538807662,-514.20698737,0.0004,31]
[312957511,1706538807685,-411.14495843,0.0004,31]
[312957512,1706538807709,-500.0,0.0004,31]
[312957513,1706538807735,-500.0,0.0004,31]
[312957514,1706538807761,-3427.6,0.0004,31]
[312957515,1706538807786,-1057.6,0.0004,31]
[312957516,1706538807809,-563.90397151,0.0004,31]
[312957517,1706538807833,-1017.15,0.0004,31]
[312957518,1706538807857,-2169.21,0.0004,31]
[312957519,1706538807880,-1131.83,0.0004,31]
[312957520,1706538807903,-500.0,0.0004,31]
[312957521,1706538807926,-779.34,0.0004,31]
[312957522,1706538807949,-9873.08,0.0004,31]
[312957523,1706538807972,-11797.11,0.0004,31]
[312957524,1706538807995,-2020.52,0.0004,31]
[312957525,1706538808017,-743.87,0.0004,31]
[312957526,1706538808041,-1323.39643527,0.0004,31]
[312957527,1706538810052,-500.0,0.0003863,31]
[312957528,1706538810078,-500.0,0.0003863,31]
[312957529,1706538810101,-500.0,0.0003863,31]
[312957530,1706538810125,-500.0,0.0003863,31]
[312957531,1706538810149,-1563.07097645,0.000389,30]
[312957532,1706538810172,-500.0,0.00038904,31]
[312957533,1706538810195,-500.0,0.00038904,31]
[312957534,1706538810218,-500.0,0.00038904,31]
[312957535,1706538810243,-296.00621651,0.00038904,31]
[312957536,1706538810270,-500.0,0.00039178,31]
[312957537,1706538810293,-500.0,0.00039178,31]
[312957538,1706538810319,-508.50859934,0.00039178,31]
[312957539,1706538810343,-500.0,0.00039452,31]
[312957540,1706538810367,-500.0,0.00039452,31]
[312957541,1706538810392,-500.0,0.00039726,31]
[312957542,1706538810415,-500.0,0.00039726,31]
[312957543,1706538810441,-888.17356473,0.0004,31]
[312957544,1706538810463,-500.0,0.0004,31]
[312957545,1706538810486,-924.3,0.0004,31]
[312957546,1706538810509,-1073.34,0.0004,31]
[312957547,1706538810532,-872.23,0.0004,31]
[312957548,1706538810556,-1852.45,0.0004,31]
[312957549,1706538810580,-5429.7,0.0004,31]
[312957550,1706538810602,-1635.04,0.0004,31]
[312957551,1706538810626,-9404.46,0.0004,31]
[312957552,1706538810649,-14041.2,0.0004,31]
[312957553,1706538810672,-500.0,0.0004,31]
[312957554,1706538810695,-2669.14,0.0004,31]
[312957555,1706538810718,-500.0,0.0004,31]
[312957556,1706538810741,-2294.83,0.0004,31]
[312957557,1706538810765,-500.0,0.0004,31]
[312957558,1706538810789,-878.0,0.0004,31]
[312957559,1706538810815,-4182.51,0.0004,31]
[312957560,1706538810839,-500.0,0.0004,31]
[312957561,1706538810864,-14584.84,0.0004,31]
[312957562,1706538810888,-500.0,0.0004,31]
[312957563,1706538810919,-500.0,0.0004,31]
[312957564,1706538810944,-660.89,0.0004,31]
[312957565,1706538810969,-500.0,0.0004,31]
[312957566,1706538810994,-500.0,0.0004,31]
[312957567,1706538811019,-749.73,0.0004,31]
[312957568,1706538811051,-2909.62,0.0004,31]
[312957569,1706538811080,-2473.64,0.0004,31]
[312957570,1706538811107,-500.0,0.0004,31]
[312957571,1706538811131,-4154.62,0.0004,31]
[312957572,1706538811155,-500.0,0.0004,31]
[312957573,1706538811179,-500.0,0.0004,31]
[312957574,1706538811202,-500.0,0.00040273,31]
[312957575,1706538811226,-500.0,0.00040273,31]
[312957576,1706538811250,-200.03494596,0.00040273,31]
[312957577,1706538811356,-500.0,0.00040273,31]
[312957578,1706538811381,-500.0,0.00040273,31]
[312957579,1706538811405,-1691.94,0.00040273,31]
[312957580,1706538811429,-500.0,0.00040273,31]
[312957581,1706538811452,-828.48,0.00040273,31]
[312957582,1706538811475,-500.0,0.00040273,31]
[312957583,1706538811499,-500.0,0.00040273,31]
[312957584,1706538811523,-1435.56,0.00040273,31]
[312957585,1706538811546,-704.48,0.00040273,31]
[312957586,1706538811570,-500.0,0.00040273,31]
[312957587,1706538811594,-4725.61,0.00040273,31]
[312957588,1706538811617,-1231.73,0.00040273,31]
[312957589,1706538811641,-1441.83,0.00040273,31]
[312957590,1706538811665,-500.0,0.00040273,31]
[312957591,1706538811689,-2221.56,0.00040273,31]
[312957592,1706538811713,-500.0,0.00040273,31]
[312957593,1706538811738,-813.27,0.00040273,31]
[312957594,1706538811761,-500.0,0.00040273,31]
[312957595,1706538811785,-807.25,0.00040273,31]
[312957596,1706538811809,-500.0,0.00040273,31]
[312957597,1706538811834,-724.98,0.00040273,31]
[312957598,1706538811857,-500.0,0.00040273,31]
[312957599,1706538811881,-1574.41,0.00040273,31]
[312957600,1706538811905,-905.22,0.00040273,31]
[312957601,1706538811929,-500.0,0.00040273,31]
[312957602,1706538811952,-500.0,0.00040273,31]
[312957603,1706538811977,-500.0,0.00040273,31]
[312957604,1706538812002,-3427.6,0.00040273,31]
[312957605,1706538812025,-1057.6,0.00040273,31]
[312957606,1706538812049,-1017.15,0.00040273,31]
[312957607,1706538812074,-500.0,0.00040273,31]
[312957608,1706538812100,-779.34,0.00040273,31]
[312957609,1706538812124,-9873.08,0.00040273,31]
[312957610,1706538812153,-11797.11,0.00040273,31]
[312957611,1706538812177,-2020.52,0.00040273,31]
[312957612,1706538812202,-743.87,0.00040273,31]
[312957613,1706538812227,-2211.57,0.00040273,31]
[312957614,1706538812252,-500.0,0.00040273,31]
[312957615,1706538812277,-924.3,0.00040273,31]
[312957616,1706538812302,-1073.34,0.00040273,31]
[312957617,1706538812327,-872.23,0.00040273,31]
[312957618,1706538812352,-1852.45,0.00040273,31]
[312957619,1706538812376,-5429.7,0.00040273,31]
[312957620,1706538812399,-1635.04,0.00040273,31]
[312957621,1706538812423,-9404.46,0.00040273,31]
[312957622,1706538812447,-14041.2,0.00040273,31]
[312957623,1706538812471,-500.0,0.00040273,31]
[312957624,1706538812495,-2669.14,0.00040273,31]
[312957625,1706538812520,-500.0,0.00040273,31]
[312957626,1706538812545,-2294.83,0.00040273,31]
[312957627,1706538812570,-500.0,0.00040273,31]
[312957628,1706538812594,-878.0,0.00040273,31]
[312957629,1706538812619,-4182.51,0.00040273,31]
[312957630,1706538812643,-500.0,0.00040273,31]
[312957631,1706538812667,-14584.84,0.00040273,31]
[312957632,1706538812691,-500.0,0.00040273,31]
[312957633,1706538812717,-500.0,0.00040273,31]
[312957634,1706538812741,-660.89,0.00040273,31]
[312957635,1706538812765,-500.0,0.00040273,31]
[312957636,1706538812790,-500.0,0.00040273,31]
[312957637,1706538812815,-749.73,0.00040273,31]
[312957638,1706538812839,-2909.62,0.00040273,31]
[312957639,1706538812862,-2473.64,0.00040273,31]
[312957640,1706538812963,-4154.62,0.00040273,31]
[312957641,1706538812988,-500.0,0.00040273,31]
[312957642,1706538813013,-500.0,0.00040273,31]
[312957643,1706538813038,-500.0,0.00040273,31]
[312957644,1706538813062,-1000.0,0.000403,30]
[312957645,1706538813086,-1000.0,0.000403,30]
[312957646,1706538813111,-500.0,0.00040547,31]
[312957647,1706538813135,-500.0,0.00040547,31]
[312957648,1706538813161,-522.60174841,0.00040547,31]
[312957649,1706538813187,-500.0,0.00040547,31]
[312957650,1706538813210,-1691.94,0.00040547,31]
[312957651,1706538813235,-500.0,0.00040547,31]
[312957652,1706538813259,-828.48,0.00040547,31]
[312957653,1706538813283,-500.0,0.00040547,31]
[312957654,1706538813309,-500.0,0.00040547,31]
[312957655,1706538813341,-1435.56,0.00040547,31]
[312957656,1706538813368,-704.48,0.00040547,31]
[312957657,1706538813394,-586.8120335,0.00040547,31]
[312957658,1706538813418,-4725.61,0.00040547,31]
[312957659,1706538813443,-1231.73,0.00040547,31]
[312957660,1706538813467,-1441.83,0.00040547,31]
[312957661,1706538813491,-500.0,0.00040547,31]
[312957662,1706538813515,-2221.56,0.00040547,31]
[312957663,1706538813540,-500.0,0.00040547,31]
[312957664,1706538813565,-813.27,0.00040547,31]
[312957665,1706538813590,-500.0,0.00040547,31]
[312957666,1706538813614,-807.25,0.00040547,31]
[312957667,1706538813638,-580.05021836,0.00040547,31]
[312957668,1706538813663,-724.98,0.00040547,31]
[312957669,1706538813688,-500.0,0.00040547,31]
[312957670,1706538813712,-1574.41,0.00040547,31]
[312957671,1706538813735,-905.22,0.00040547,31]
[312957672,1706538813759,-500.0,0.00040547,31]
[312957673,1706538813784,-500.0,0.00040547,31]
[312957674,1706538813808,-500.0,0.00040547,31]
[312957675,1706538813834,-3427.6,0.00040547,31]
[312957676,1706538813858,-1057.6,0.00040547,31]
[312957677,1706538813882,-1017.15,0.00040547,31]
[312957678,1706538813906,-500.0,0.00040547,31]
[312957679,1706538813930,-779.34,0.00040547,31]
[312957680,1706538813955,-9873.08,0.00040547,31]
[312957681,1706538813979,-11797.11,0.00040547,31]
[312957682,1706538814004,-2020.52,0.00040547,31]
[312957683,1706538814030,-743.87,0.00040547,31]
[312957684,1706538814057,-2211.57,0.00040547,31]
[312957685,1706538814086,-500.0,0.00040547,31]
[312957686,1706538814110,-924.3,0.00040547,31]
[312957687,1706538814135,-1073.34,0.00040547,31]
[312957688,1706538814161,-872.23,0.00040547,31]
[312957689,1706538814187,-1852.45,0.00040547,31]
[312957690,1706538814211,-5429.7,0.00040547,31]
[312957691,1706538814236,-1635.04,0.00040547,31]
[312957692,1706538814262,-9404.46,0.00040547,31]
[312957693,1706538814288,-14041.2,0.00040547,31]
[312957694,1706538814314,-500.0,0.00040547,31]
[312957695,1706538814343,-2669.14,0.00040547,31]
[312957696,1706538814367,-500.0,0.00040547,31]
[312957697,1706538814393,-2294.83,0.00040547,31]
[312957698,1706538814418,-500.0,0.00040547,31]
[312957699,1706538814442,-878.0,0.00040547,31]
[312957700,1706538814467,-4182.51,0.00040547,31]
[312957701,1706538814570,-500.0,0.00040547,31]
[312957702,1706538814595,-14584.84,0.00040547,31]
[312957703,1706538814620,-500.0,0.00040547,31]
[312957704,1706538814650,-500.0,0.00040547,31]
[312957705,1706538814679,-660.89,0.00040547,31]
[312957706,1706538814709,-500.0,0.00040547,31]
[312957707,1706538814739,-500.0,0.00040547,31]
[312957708,1706538814771,-749.73,0.00040547,31]
[312957709,1706538814798,-2909.62,0.00040547,31]
[312957710,1706538814825,-2473.64,0.00040547,31]
[312957711,1706538814850,-4154.62,0.00040547,31]
[312957712,1706538814874,-333.70040122,0.00040547,31]
[312957713,1706538814898,-500.0,0.00040547,31]
[312957714,1706538814923,-500.0,0.00040547,31]
[312957715,1706538814947,-1000.0,0.000406,30]
[312957716,1706538814971,-150.0,0.00040615,120]
[312957717,1706538814995,-500.0,0.00040821,31]
[312957718,1706538815019,-500.0,0.00040821,31]
[312957719,1706538815044,-500.0,0.00040821,31]
[312957720,1706538815068,-1691.94,0.00040821,31]
[312957721,1706538815093,-500.0,0.00040821,31]
[312957722,1706538815116,-828.48,0.00040821,31]
[312957723,1706538815144,-500.0,0.00040821,31]
[312957724,1706538815169,-500.0,0.00040821,31]
[312957725,1706538815195,-1435.56,0.00040821,31]
[312957726,1706538815221,-704.48,0.00040821,31]
[312957727,1706538815245,-4725.61,0.00040821,31]
[312957728,1706538815269,-1231.73,0.00040821,31]
[312957729,1706538815294,-1441.83,0.00040821,31]
[312957730,1706538815322,-500.0,0.00040821,31]
[312957731,1706538815347,-2221.56,0.00040821,31]
[312957732,1706538815372,-500.0,0.00040821,31]
[312957733,1706538815398,-813.27,0.00040821,31]
[312957734,1706538815423,-500.0,0.00040821,31]
[312957735,1706538815447,-807.25,0.00040821,31]
[312957736,1706538815472,-724.98,0.00040821,31]
[312957737,1706538815498,-500.0,0.00040821,31]
[312957738,1706538815522,-1574.41,0.00040821,31]
[312957739,1706538815547,-905.22,0.00040821,31]
[312957740,1706538815571,-500.0,0.00040821,31]
[312957741,1706538815596,-500.0,0.00040821,31]
[312957742,1706538815621,-500.0,0.00040821,31]
[312957743,1706538815646,-3427.6,0.00040821,31]
[312957744,1706538815670,-1057.6,0.00040821,31]
[312957745,1706538815695,-1017.15,0.00040821,31]
[312957746,1706538815719,-500.0,0.00040821,31]
[312957747,1706538815743,-779.34,0.00040821,31]
[312957748,1706538815767,-9873.08,0.00040821,31]
[312957749,1706538815791,-11797.11,0.00040821,31]
[312957750,1706538815816,-2020.52,0.00040821,31]
[312957751,1706538815842,-743.87,0.00040821,31]
[312957752,1706538815869,-2211.57,0.00040821,31]
[312957753,1706538815895,-500.0,0.00040821,31]
[312957754,1706538815924,-924.3,0.00040821,31]
[312957755,1706538815948,-1073.34,0.00040821,31]
[312957756,1706538815973,-872.23,0.00040821,31]
[312957757,1706538815998,-1852.45,0.00040821,31]
[312957758,1706538816022,-5429.7,0.00040821,31]
[312957759,1706538816118,-1635.04,0.00040821,31]
[312957760,1706538816150,-9404.46,0.00040821,31]
[312957761,1706538816176,-14041.2,0.00040821,31]
[312957762,1706538816201,-500.0,0.00040821,31]
[312957763,1706538816228,-2669.14,0.00040821,31]
[312957764,1706538816253,-500.0,0.00040821,31]
[312957765,1706538816278,-2294.83,0.00040821,31]
[312957766,1706538816303,-500.0,0.00040821,31]
[312957767,1706538816328,-878.0,0.00040821,31]
[312957768,1706538816352,-4182.51,0.00040821,31]
[312957769,1706538816376,-500.0,0.00040821,31]
[312957770,1706538816401,-14584.84,0.00040821,31]
[312957771,1706538816425,-500.0,0.00040821,31]
[312957772,1706538816450,-500.0,0.00040821,31]
[312957773,1706538816474,-660.89,0.00040821,31]
[312957774,1706538816499,-500.0,0.00040821,31]
[312957775,1706538816525,-361.79097929,0.00040821,31]
[312957776,1706538816549,-749.73,0.00040821,31]
[312957777,1706538816574,-2909.62,0.00040821,31]
[312957778,1706538816598,-2473.64,0.00040821,31]
[312957779,1706538816622,-4154.62,0.00040821,31]
[312957780,1706538816646,-500.0,0.00040821,31]
[312957781,1706538816671,-500.0,0.00040821,31]
[312957782,1706538816697,-244.61031623,0.000409,30]
[312957783,1706538819621,-206.38729192,0.000295,30]
[312957784,1706538819695,-755.38968377,0.000409,30]
[312957785,1706538819720,-5656.34266867,0.00041,60]
[312957786,1706538819745,-11323.21757738,0.00041,90]
[312957787,1706538819770,-500.0,0.00041095,31]
[312957788,1706538819794,-500.0,0.00041095,31]
[312957789,1706538819819,-500.0,0.00041095,31]
[312957790,1706538819843,-1691.94,0.00041095,31]
[312957791,1706538819866,-500.0,0.00041095,31]
[312957792,1706538819889,-828.48,0.00041095,31]
[312957793,1706538819913,-500.0,0.00041095,31]
[312957794,1706538819937,-1435.56,0.00041095,31]
[312957795,1706538819961,-704.48,0.00041095,31]
[312957796,1706538819988,-4725.61,0.00041095,31]
[312957797,1706538820086,-1231.73,0.00041095,31]
[312957798,1706538820110,-1441.83,0.00041095,31]
[312957799,1706538820134,-500.0,0.00041095,31]
[312957800,1706538820170,-2221.56,0.00041095,31]
[312957801,1706538820200,-600.0,0.00041095,31]
[312957802,1706538820227,-600.0,0.00041095,31]
[312957803,1706538820254,-600.0,0.00041095,31]
[312957804,1706538820279,-601.6061005,0.00041095,31]
[312957805,1706538820306,-440.65781028,0.00041095,31]
[312957806,1706538820333,-813.27,0.00041095,31]
[312957807,1706538820359,-500.0,0.00041095,31]
[312957808,1706538820385,-807.25,0.00041095,31]
[312957809,1706538820411,-724.98,0.00041095,31]
[312957810,1706538820436,-500.0,0.00041095,31]
[312957811,1706538820461,-1574.41,0.00041095,31]
[312957812,1706538820486,-905.22,0.00041095,31]
[312957813,1706538820511,-403.66801907,0.00041095,31]
[312957814,1706538820536,-500.0,0.00041095,31]
[312957815,1706538820562,-1057.6,0.00041095,31]
[312957816,1706538820588,-1017.15,0.00041095,31]
[312957817,1706538820614,-500.0,0.00041095,31]
[312957818,1706538820639,-779.34,0.00041095,31]
[312957819,1706538820664,-9873.08,0.00041095,31]
[312957820,1706538820689,-11797.11,0.00041095,31]
[312957821,1706538820714,-2020.52,0.00041095,31]
[312957822,1706538820739,-743.87,0.00041095,31]
[312957823,1706538820764,-2211.57,0.00041095,31]
[312957824,1706538820789,-500.0,0.00041095,31]
[312957825,1706538820813,-924.3,0.00041095,31]
[312957826,1706538820839,-1073.34,0.00041095,31]
[312957827,1706538820865,-872.23,0.00041095,31]
[312957828,1706538820896,-1852.45,0.00041095,31]
[312957829,1706538820921,-5429.7,0.00041095,31]
[312957830,1706538820945,-1635.04,0.00041095,31]
[312957831,1706538820970,-9404.46,0.00041095,31]
[312957832,1706538820998,-14041.2,0.00041095,31]
[312957833,1706538821024,-500.0,0.00041095,31]
[312957834,1706538821050,-2669.14,0.00041095,31]
[312957835,1706538821075,-500.0,0.00041095,31]
[312957836,1706538821100,-2294.83,0.00041095,31]
[312957837,1706538821126,-500.0,0.00041095,31]
[312957838,1706538821153,-878.0,0.00041095,31]
[312957839,1706538821179,-4182.51,0.00041095,31]
[312957840,1706538821205,-500.0,0.00041095,31]
[312957841,1706538821232,-14584.84,0.00041095,31]
[312957842,1706538821260,-500.0,0.00041095,31]
[312957843,1706538821290,-500.0,0.00041095,31]
[312957844,1706538821316,-660.89,0.00041095,31]
[312957845,1706538821344,-500.0,0.00041095,31]
[312957846,1706538821370,-749.73,0.00041095,31]
[312957847,1706538821396,-2909.62,0.00041095,31]
[312957848,1706538821422,-2473.64,0.00041095,31]
[312957849,1706538821447,-4154.62,0.00041095,31]
[312957850,1706538821472,-500.0,0.00041095,31]
[312957851,1706538821501,-500.0,0.00041095,31]
[312957852,1706538821606,-1000.0,0.000412,30]
[312957853,1706538821632,-20050.0,0.00041235,120]
[312957854,1706538821656,-500.0,0.00041369,31]
[312957855,1706538821681,-500.0,0.00041369,31]
[312957856,1706538821706,-500.0,0.00041369,31]
[312957857,1706538821730,-1691.94,0.00041369,31]